Cogmind - Beta 12 @@@ ROGUE MODE // 2023.06.27 @ 21:28:47 Player: Alexis Result: Destroyed by Y-45 Defender with Beam Rifle Performance ------------- Evolutions (1) 500 Regions Visited (2) 400 Robots Destroyed (33) 165 Value Destroyed (1085) 1085 Prototype IDs (0) 0 Alien Tech Used (0) 0 Bonus (0) 0 TOTAL SCORE: 2150 Bonus ------- None Cogmind --------- Core Integrity 0/400 Matter 305/400 Energy 265/265 System Corruption 4% Temperature Warm (103) Movement Core (200) Ox3 Location -9/Materials Parts ------- > --- POWER (2) -------- Improved Ion Engine > --- PROPULSION (2) --- (None) > --- UTILITY (2) ------ Medium Matter Pod Visual Processing Unit > --- WEAPON (3) ------- Light Cannon > --- INVENTORY (5) ---- Aluminum Leg Aluminum Leg Signal Interpreter Peak State ------------ > --- POWER ------------ Ion Engine Light Nuclear Core > --- PROPULSION ------- Wheel Wheel > --- UTILITY ---------- Structural Scanner Sensor Array > --- WEAPON ----------- Spread Laser Spread Laser Heavy Assault Rifle > --- INVENTORY -------- Signal Interpreter Light Cannon Light Cannon Light Cannon Light Cannon [Rating: 14] Favorites ----------- Power Ion Engine Engine Ion Engine Power Core Light Nuclear Core Propulsion Wheel Leg Aluminum Leg Wheel Wheel Utility Structural Scanner Device Structural Scanner Storage Medium Storage Unit Processor Salvage Targeting Computer Weapon Light Cannon Energy Gun Spread Laser Energy Cannon Light EM Pulse Cannon Ballistic Gun Assault Rifle Ballistic Cannon Light Cannon Build | -11 -10 -9 ------- Run | Jun Mat Mat Slots Evolved 2 | . . 2 Power 1 | . . 1 Propulsion . | . . . Utility . | . . . Weapon 1 | . . 1 Parts Attached 41 | 5 2 34 Power 8 | 1 . 7 Engine 7 | 1 . 6 Core 1 | . . 1 Reactor . | . . . Propulsion 6 | 2 . 4 Treads . | . . . Leg 2 | . . 2 Wheel 4 | 2 . 2 Hover . | . . . Flight . | . . . Utility 6 | . 2 4 Device 2 | . 2 . Storage 2 | . . 2 Processor 2 | . . 2 Hackware . | . . . Protection . | . . . Artifact . | . . . Weapon 21 | 2 . 19 Energy Gun 9 | . . 9 Energy Cannon 1 | . . 1 Ballistic Gun 3 | 2 . 1 Ballistic Cannon 8 | . . 8 Launcher . | . . . Special Weapon . | . . . Impact Weapon . | . . . Slashing Weapon . | . . . Piercing Weapon . | . . . Special Melee Weapon . | . . . Unidentified Prototypes . | . . . Corrupted Parts 1 | . . 1 System Corruption 4 | . . 4 Parts Lost 15 | . . 15 Power 4 | . . 4 Propulsion 4 | . . 4 Utility 1 | . . 1 Weapon 6 | . . 6 Highest Loss Streak 6 | . . 6 To Critical Strikes . | . . . Average Slot Usage (%) 86 | . 88 86 Engine 14 | . 11 15 Leg 8 | . . 9 Wheel 12 | . 28 10 Device 12 | . 22 10 Storage 1 | . . 2 Processor 5 | . . 5 Energy Gun 11 | . . 13 Energy Cannon 3 | . . 3 Ballistic Gun 5 | . 25 3 Ballistic Cannon 9 | . . 11 Naked Turns . | . . . Heaviest Build 25 | 7 9 25 Greatest Support 20 | 20 20 20 Greatest Overweight (x) 5 | . . 5 Average Overweight (x) . | . . . Largest Inventory Capacity 10 | 5 5 10 Average Capacity 5 | 5 5 5 Most Carried 6 | 2 3 6 Average Carried 4 | 1 2 4 Final Capacity 5 | 5 5 5 Final Carried 3 | 2 3 3 Class Distribution -------------------- 36% | Skirmisher 23% | Mutant 15% | Scavenger-Gunner 12% | Scavenger-Skirmisher 7% | Gunner 3% | Scavenger-Mutant Dominant Class ---------------- Mutant | -10/Materials Skirmisher | -9/Materials Resources | -11 -10 -9 ----------- Run | Jun Mat Mat Matter Collected 883 | 174 74 635 Remotely . | . . . Salvage Created 1105 | . 74 1031 Parts 59 | . 5 54 Haulers Intercepted . | . . . Recyclers Shooed 1 | . . 1 Parts Field Recycled . | . . . Retrieved Matter . | . . . Parts Self-Destructed . | . . . Prevented . | . . . Kills | -11 -10 -9 ------- Run | Jun Mat Mat Combat Hostiles Destroyed 26 | . 3 23 Guns 14 | . 3 11 Cannons 8 | . . 8 AOE 4 | . . 4 Classes Destroyed 6 | . 2 4 Builder 1 | . . 1 Operator 1 | . . 1 Watcher 5 | . 1 4 Swarmer 3 | . 3 . Grunt 16 | . . 16 Sentry 7 | . . 7 Best Kill Streak 4 | . 2 4 Combat Bots Only 4 | . 2 4 Max Kills in Single Turn 2 | . 2 2 Gunslinging . | . . . Exploded 2 | . . 2 Melee . | . . . Uniques/NPCs Destroyed . | . . . Combat | -11 -10 -9 -------- Run | Jun Mat Mat Damage Taken 1799 | . 153 1646 Core 445 | . 35 410 Absorbed by Shields . | . . . Regen/Repaired (Parts) 37 | . . 37 Core Remaining (%) 93 | 100 86 . Volleys Fired 74 | . 14 60 Largest 3 | . 2 3 Hottest 157 | . 40 157 Shots Fired 173 | . 26 147 Gun 122 | . 26 96 Cannon 51 | . . 51 Launcher . | . . . Special . | . . . Kinetic 78 | . 26 52 Thermal 53 | . . 53 Explosive . | . . . Electromagnetic 42 | . . 42 Robot Hit Streak 13 | . 2 13 Robot Miss Streak 7 | . 4 7 Penetration Max . | . . . Secondary Targets 1 | . . 1 Max Gunslinging Chain 1 | . . 1 Shots Hit Robots 117 | . 9 108 Core Hits 70 | . 5 65 Critical Kills . | . . . Critical Parts Destroyed . | . . . Critical Strikes 6 | . . 6 Burn 3 | . . 3 Blast 3 | . . 3 Melee Attacks . | . . . Impact . | . . . Slashing . | . . . Piercing . | . . . Sneak Attacks . | . . . Combat Hostiles . | . . . Follow-up Attacks . | . . . Damage Inflicted 2071 | . 132 1939 Guns 1197 | . 132 1065 Cannons 692 | . . 692 Explosions 182 | . . 182 Melee . | . . . Ramming . | . . . Kinetic 727 | . 132 595 Thermal 778 | . . 778 Explosive . | . . . Electromagnetic 566 | . . 566 Impact . | . . . Slashing . | . . . Piercing . | . . . Highest Corruption 4 | . . 4 Average Corruption 4 | . . 4 Corruption Purged . | . . . Corruption Blocked . | . . . Effects 16 | . . 16 Message Errors 5 | . . 5 Matter Fused 2 | . . 2 Heat Flow Errors 1 | . . 1 Energy Discharges 1 | . . 1 Parts Rejected 2 | . . 2 Data Loss (minor) 2 | . . 2 Data Loss (major) 1 | . . 1 Misfires 2 | . . 2 Overload Shots . | . . . Overflow Damage 19 | . . 19 Projectiles . | . . . Explosions 19 | . . 19 Melee . | . . . Knockbacks . | . . . Impact . | . . . Kinetic . | . . . Secondary . | . . . Self-Inflicted Damage 37 | . . 37 Shots 2 | . . 2 Rammed . | . . . Targets Rammed . | . . . Kicked . | . . . Crushed . | . . . Highest Temperature 691 | . . 691 Average Temperature 154 | . . 154 Received Heat Transfer 633 | . 18 615 Effects 27 | . . 27 Shutdowns 3 | . . 3 Interference 5 | . . 5 Matter Decay 2 | . . 2 Short Circuit 4 | . . 4 Damage (minor) 2 | . . 2 Damage (major) 10 | . . 10 Damage (core) 1 | . . 1 Siege Activations . | . . . Robots Corrupted . | . . . Combat Hostiles . | . . . Parts Fried 2 | . . 2 Impact Corruptions . | . . . Robots Melted . | . . . Combat Hostiles . | . . . Parts Melted 2 | . . 2 Heat Transferred 1542 | . . 1542 Parts Sabotaged . | . . . Parts Stolen . | . . . Parts Stripped . | . . . Power Chain Reactions 4 | . . 4 Missiles Intercepted . | . . . Alert | -11 -10 -9 ------- Run | Jun Mat Mat Peak Influence 364 | . 122 364 Initial 51 | . . 51 Average 139 | . 47 157 Maximum Alert Level 1 | . . 1 Low Security (%) 74 | 100 100 69 Level 1 25 | . . 30 Level 2 . | . . . Level 3 . | . . . Level 4 . | . . . Level 5 . | . . . High Security . | . . . Max Security . | . . . Squads Dispatched 5 | . . 5 Investigation 3 | . . 3 Extermination . | . . . Reinforcement 2 | . . 2 Assault . | . . . Garrison . | . . . Intercept . | . . . Searches Triggered . | . . . Construction Impeded . | . . . Haulers Reinforced . | . . . Active Scanning Responses . | . . . Cargo Convoy Interrupts . | . . . Stealth | -11 -10 -9 --------- Run | Jun Mat Mat Distress Signals 4 | . 2 2 Communications Jammed . | . . . Distress Signals . | . . . Times Spotted 45 | . 7 38 Peak Tracking Total 8 | . 4 8 Tactical Retreats 2 | . 1 1 Traps | -11 -10 -9 ------- Run | Jun Mat Mat Traps Triggered 2 | . 1 1 Indirectly . | . . . Trap Hack Attempts . | . . . Triggered . | . . . Disarmed . | . . . Reprogrammed . | . . . Reused . | . . . Traps Extracted . | . . . Installed . | . . . Triggered . | . . . Machines | -11 -10 -9 ---------- Run | Jun Mat Mat Machines Disabled 3 | . . 3 Max in Single Turn 1 | . . 1 Machines Repaired . | . . . Machines Sabotaged . | . . . Overloaded Fab Kills . | . . . Hacking | -11 -10 -9 --------- Run | Jun Mat Mat Machines Accessed 2 | . . 2 Terminals . | . . . Fabricators . | . . . Repair Stations 1 | . . 1 Recycling Units . | . . . Scanalyzers 1 | . . 1 Garrison Access . | . . . Total Hacks 8 | . . 8 Successful 7 | . . 7 Failed 1 | . . 1 Catastrophic . | . . . Database Lockouts . | . . . Manual . | . . . Terminals . | . . . Fabricators . | . . . Repair Stations 5 | . . 5 Recycling Units . | . . . Scanalyzers 3 | . . 3 Garrison Access . | . . . Terminal Hacks . | . . . Fabricator Hacks . | . . . Repair Station Hacks 4 | . . 4 Scan Component 3 | . . 3 Repair 1 | . . 1 Recycling Unit Hacks . | . . . Scanalyzer 3 | . . 3 Insert Component 1 | . . 1 Analyze 2 | . . 2 Garrison Access Hacks . | . . . Unauthorized Hacks . | . . . Terminals . | . . . Fabricators . | . . . Repair Stations . | . . . Recycling Units . | . . . Scanalyzers . | . . . Garrison Access . | . . . Data Cores Recovered . | . . . Used . | . . . Hacking Detections 2 | . . 2 Full Trace Events 2 | . . 2 Feedback Events . | . . . Feedback Blocked . | . . . Robot Schematics Acquired . | . . . Robots Built . | . . . Authchips . | . . . Time . | . . . Total Robot Build Rating . | . . . Part Schematics Acquired . | . . . Parts Built . | . . . Authchips . | . . . Time . | . . . Total Part Build Rating . | . . . Parts Repaired 1 | . . 1 Time 26 | . . 26 Parts Recycled . | . . . Recycled Matter . | . . . Retrieved Matter . | . . . Retrieved Components . | . . . Parts Scanalyzed 1 | . . 1 Part Schematics Acquired . | . . . Parts Damaged . | . . . Bothacking | -11 -10 -9 ------------ Run | Jun Mat Mat Used RIF Installer . | . . . Robots Hacked . | . . . Non-combat . | . . . Combat . | . . . Robot Hacks Applied . | . . . Relay Couplers Released . | . . . Fabnet Peak Effective % . | . . . Robots Rewired . | . . . Allies Hacked . | . . . Hacks Repelled . | . . . Allies | -11 -10 -9 -------- Run | Jun Mat Mat Total Allies . | . . . Largest Group . | . . . Highest-Rated Group . | . . . Highest-Rated Ally . | . . . Total Orders . | . . . Ally Attacks . | . . . Total Damage . | . . . Kills . | . . . Allies Corrupted . | . . . Allies Melted . | . . . Intel | -11 -10 -9 ------- Run | Jun Mat Mat Robot Analysis Total . | . . . Derelict Logs Recovered . | . . . Drone Launches . | . . . Drone Recoveries . | . . . Exploration | -11 -10 -9 ------------- Run | Jun Mat Mat Turns Passed 1709 | 60 203 1446 Spaces Moved 1210 | 61 197 952 Core 38 | 1 . 37 Treads . | . . . Legs 365 | . . 365 Wheels 807 | 60 197 550 Hover . | . . . Flight . | . . . Fastest Speed 50 | 50 80 80 Average Speed 106 | 79 80 114 Slowest Speed 300 | 80 80 300 Overloaded Moves . | . . . Propulsion Burnouts . | . . . Robots Hopped . | . . . Cave-ins Triggered . | . . . Exploration Rate (%) 27 | 3 21 57 Regions Visited 2 Branch Regions . Pre-discovered Areas . | . . . Known Exits Taken . | . . . Unknown Exits Taken 2 | 1 1 . Scrap Searched . | . . . Spaces Dug . | . . . Terrain Destroyed 22 | . . 22 Melee . | . . . Projectile . | . . . AOE 22 | . . 22 Terrain Rammed . | . . . Walls Destroyed . | . . . Machines Disabled . | . . . Actions | -11 -10 -9 --------- Run | Jun Mat Mat Total 1481 | 72 216 1193 Wait 113 | . 1 112 Move 1208 | 60 196 952 Hop . | . . . Pick Up 31 | 7 3 21 Fast Attach 9 | . . 9 Attach 22 | 5 2 15 Detach 1 | . . 1 Swap 10 | . . 10 Drop 13 | . . 13 Fire 74 | . 14 60 Melee . | . . . Ram . | . . . Kick . | . . . Crush . | . . . Escape Stasis . | . . . Rewire . | . . . Trap . | . . . Miscellaneous . | . . . Route ------- -11/Junkyard -10/Materials -9/Materials (discovered 2 exits: [*Mat] / [*Min]) History --------- Turn | Location | Event 12 | -11/Junkyard | Discovered new exit (range 16) 61 | -11/Junkyard | Entered Materials 158 | -10/Materials | Discovered new exit (range 12) 264 | -10/Materials | Entered another Materials area 264 | -9/Materials | Evolved 2 slots: Power x1, Weapon x1 311 | -9/Materials | Build established: Mutant 551 | -9/Materials | Repaired Wheel 649 | -9/Materials | Build established: Skirmisher 745 | -9/Materials | Core integrity fell below 50% 783 | -9/Materials | Lost 5 parts (2p1n2w) 831 | -9/Materials | Discovered new exit (range 12) 1160 | -9/Materials | Core integrity fell below 20% 1213 | -9/Materials | Discovered new exit (range 8) 1710 | -9/Materials | Destroyed by Y-45 Defender with Beam Rifle Last Messages --------------- 01672_ U-05 Engineer destroyed. 01675_ U-05 Engineer builds a Wall. 01675_ Acquired 54 matter. 01679_ Acquired Imp. Ion Engine. 01680_ U-05 Engineer builds a Wall. 01684_ Critical hit (Burn: +37). 01684_ Lgt. EM Pulse Cannon destroyed. 01686_ Ion Engine destroyed. 01690_ Critical hit (Burn: +37). 01692_ Lgt. Cannon destroyed. 01698_ Critical hit (Burn: +37). 01699_ Y-45 Defender destroyed. 01699_ Critical hit (Burn: +37). 01699_ Aluminum Leg destroyed. 01704_ Acquired Beam Rifle. 01706_ G-47 Trooper suffers critical hit (Burn). 01707_ System corrupted: Beam Rifle rejected. 01708_ Beam Rifle destroyed. 01709_ Aluminum Leg melted. 01709_ G-47 Trooper destroyed. Map ----- +----------------------------------------------------+ | #????????????????????# ##########+# | | #???????????#+#??????# | | ####### #???????????# ######## T !*! | | #?## ##########???# = = | | #??# # #???# ## ###+######+# | | "" #### # "" ##### ####+##### ????#!% | | "" + # ""S + + # ????# " | | "" #### + "" ############# # ???# " | | #??#%## #???????????# # ???# " | | ##+#####+## """ #???????????# # ??# | | ?# # %# """ #???????????# # ??#= | | ?# # *%!# """ #???????????# ######?# | | ## # # #???????????# #??????# | | # #/########???????????# #??????# | | + #%#??????????????????# #??????# | | +### # #??????????????????##########??????# | | ## # #??????????????????????????????????# | | ## # ########???????????????????????????### | | ## # # ! ! #?????????????????????????????? | | ## # # #?????????????????????????????? | | ## # + !! #?????????????????????????????? | | ## # # !! #?????????????????????????????? | | ## # / !! #?????????????????????????????? | | ########### # #????#####????????????????????? | | ??## #############[!%########?????????????? | | # !Y Y ! @=|!%=%*=Y g ra ?????? | | +[ *%= ################?????????????? | | """ # #?? ! ?????????????????? | | """ !! ??# ########? #????????????????? | | """ !????# #???????# #????????????????? | | ??????# #???????# ]]! #????????????????? | | #????????# #???????# ]] #???????????????? | | ?????????# #???????# ]! ##???????????????? | | ????????? #???????#########+##????????????????? | | ????????## #???????????????????????????????????? | | ?????????# #???????????????????????????????????? | | ?????????# #???????????????????????????????????? | | ?????????# #???????????????????????????????????? | | ?????????# #???????????????????????????????????? | | ????????? ???????????????????????????????????? | | ????????? ???????????????????????????????????? | | ????????? ???????????????????????????????????? | | ????????? ???????????????????????????????????? | | ????????? ???????????????????????????????????? | | ?????????????????????????????????????????????????? | | ?????????????????????????????????????????????????? | | ?????????????????????????????????????????????????? | | ?????????????????????????????????????????????????? | | ?????????????????????????????????????????????????? | | ?????????????????????????????????????????????????? | +----------------------------------------------------+ Best States ------------- Heat Dissipation 28 Energy Generation 19 Energy Capacity 415 Matter Stores 337 Matter Capacity 400 Sight Range 18 Robot Scan Range 14 Terrain Scan Density 10 Evasion (%) 55 Salvage Targeting 1 Item Schematics ----------------- None Robot Schematics ------------------ None Fabricated ------------ Nothing Alien Tech Used ----------------- None Achievements -------------- None Challenges ------------ None Game ------ Seed AlloyPhaseGun Manual? 0 Play Time 00:24:50 Cumulative 13.8 hours Start 2023.06.27 @ 21:04:58 End 2023.06.27 @ 21:28:47 Sessions 1 Manual Loads 0 Difficulty Rogue Special Mode None Game No. 29 Rogue 25 Adventurer 4 Explorer 0 Win Type - Total 0 Types 0/0/0/0/0/0/0/0/0 Lore% 14 Gallery% 20 Achievement% 17 Wizard Run 0 Options --------- ASCII 0 Keyboard 0 Movement Arrows Keybinds 0 Fullscreen 1 Font 18/SmallcapsGlow Map View 76x50 Tactical HUD 1 Map Filters NONE Filters NONE Steam 1 RUN: 4a507d9c-743c-416b-8413-5fbc2094a587